[Event "Titled Tuesday Blitz February 15 Late 2022"]
[White "Dounis, Alexandros"]
[Black "Jaracz, Pawel"]
[WhiteFideId "4213238"]
[BlackFideId "1102222"]
[WhiteElo "2195"]
[BlackElo "2429"]
[Result "0-1"]
[Round "01"]
[TimeControl "180+1"]
[Date "2022.02.16"]
[WhiteClock "0:00:05"]
[BlackClock "0:00:36"]

1. Nf3 {[%clk 0:02:57]}  d5 {[%clk 0:02:59]} 2. g3 {[%clk 0:02:57]}  Bg4 {[%clk 0:02:58]} 3. Bg2 {[%clk 0:02:58]}  Nd7 {[%clk 0:02:57]} 4. O-O {[%clk 0:02:57]}  e6 {[%clk 0:02:57]} 5. d3 {[%clk 0:02:55]}  Bd6 {[%clk 0:02:54]} 6. c4 {[%clk 0:02:53]}  Ne7 {[%clk 0:02:52]} 7. Nc3 {[%clk 0:02:51]}  c6 {[%clk 0:02:49]} 8. h3 {[%clk 0:02:51]}  Bh5 {[%clk 0:02:48]} 9. e4 {[%clk 0:02:43]}  dxc4 {[%clk 0:02:40]} 10. dxc4 {[%clk 0:02:43]}  Qc7 {[%clk 0:02:39]} 11. Be3 {[%clk 0:02:31]}  O-O {[%clk 0:02:38]} 12. Re1 {[%clk 0:02:23]}  Rfd8 {[%clk 0:02:32]} 13. Qc2 {[%clk 0:02:22]}  Bc5 {[%clk 0:02:28]} 14. Bf4 {[%clk 0:01:56]}  e5 {[%clk 0:02:25]} 15. Bg5 {[%clk 0:01:56]}  Nf8 {[%clk 0:02:20]} 16. Na4 {[%clk 0:01:42]}  Bxf3 {[%clk 0:02:18]} 17. Nxc5 {[%clk 0:01:34]}  Bxg2 {[%clk 0:02:17]} 18. Kxg2 {[%clk 0:01:33]}  b6 {[%clk 0:02:16]} 19. Nb3 {[%clk 0:01:33]}  Ne6 {[%clk 0:02:16]} 20. Bxe7 {[%clk 0:01:29]}  Qxe7 {[%clk 0:02:15]} 21. Rad1 {[%clk 0:01:14]}  a5 {[%clk 0:02:07]} 22. a4 {[%clk 0:00:57]}  Qb4 {[%clk 0:02:01]} 23. Qc3 {[%clk 0:00:57]}  f6 {[%clk 0:01:15]} 24. Rxd8+ {[%clk 0:00:27]}  Rxd8 {[%clk 0:01:13]} 25. Qxb4 {[%clk 0:00:27]}  axb4 {[%clk 0:01:14]} 26. a5 {[%clk 0:00:26]}  bxa5 {[%clk 0:01:10]} 27. Nxa5 {[%clk 0:00:26]}  c5 {[%clk 0:01:09]} 28. Nb3 {[%clk 0:00:20]}  Rd3 {[%clk 0:01:08]} 29. Re3 {[%clk 0:00:20]}  Rd1 {[%clk 0:01:07]} 30. Kf3 {[%clk 0:00:19]}  Kf7 {[%clk 0:00:49]} 31. Ke2 {[%clk 0:00:19]}  Rb1 {[%clk 0:00:49]} 32. Rd3 {[%clk 0:00:07]}  Rxb2+ {[%clk 0:00:49]} 33. Kf1 {[%clk 0:00:07]}  Rb1+ {[%clk 0:00:48]} 34. Kg2 {[%clk 0:00:07]}  Ke7 {[%clk 0:00:43]} 35. h4 {[%clk 0:00:07]}  h5 {[%clk 0:00:43]} 36. Nd2 {[%clk 0:00:07]}  Rd1 {[%clk 0:00:42]} 37. Kf3 {[%clk 0:00:07]}  Nd4+ {[%clk 0:00:42]} 38. Kg2 {[%clk 0:00:06]}  b3 {[%clk 0:00:41]} 39. Rxb3 {[%clk 0:00:04]}  Nxb3 {[%clk 0:00:36]} 40. Nxb3 {[%clk 0:00:05]}  Kd6 {[%clk 0:00:36]} 0-1


[Site "https://www.chess.com"]

[Event "Titled Tuesday Blitz February 15 Late 2022"]
[White "Ezat, Mohamed"]
[Black "Antonova, Nadezhda"]
[WhiteFideId "10600906"]
[BlackFideId "14700182"]
[WhiteElo "2386"]
[BlackElo "1765"]
[Result "0-1"]
[Round "01"]
[TimeControl "180+1"]
[Date "2022.02.16"]
[WhiteClock "0:00:15"]
[BlackClock "0:00:04"]

1. d4 {[%clk 0:02:55]}  Nf6 {[%clk 0:02:59]} 2. c4 {[%clk 0:02:54]}  g6 {[%clk 0:02:59]} 3. Nc3 {[%clk 0:02:53]}  Bg7 {[%clk 0:03:00]} 4. e4 {[%clk 0:02:52]}  d6 {[%clk 0:03:00]} 5. Be2 {[%clk 0:02:52]}  O-O {[%clk 0:02:59]} 6. Bg5 {[%clk 0:02:52]}  Na6 {[%clk 0:02:58]} 7. Qd2 {[%clk 0:02:51]}  c5 {[%clk 0:02:51]} 8. d5 {[%clk 0:02:50]}  Nc7 {[%clk 0:02:41]} 9. Nf3 {[%clk 0:02:49]}  a6 {[%clk 0:02:40]} 10. a4 {[%clk 0:02:48]}  b6 {[%clk 0:02:30]} 11. O-O {[%clk 0:02:46]}  Bd7 {[%clk 0:02:21]} 12. h3 {[%clk 0:02:37]}  Qb8 {[%clk 0:01:53]} 13. e5 {[%clk 0:02:30]}  dxe5 {[%clk 0:01:49]} 14. Nxe5 {[%clk 0:02:30]}  Rd8 {[%clk 0:01:48]} 15. Qe3 {[%clk 0:02:20]}  Nce8 {[%clk 0:01:32]} 16. Bf4 {[%clk 0:02:13]}  Nd6 {[%clk 0:01:31]} 17. b3 {[%clk 0:02:07]}  Qb7 {[%clk 0:01:16]} 18. Bf3 {[%clk 0:02:04]}  Nf5 {[%clk 0:01:14]} 19. Qc1 {[%clk 0:01:52]}  Nd4 {[%clk 0:01:13]} 20. Bd1 {[%clk 0:01:46]}  e6 {[%clk 0:01:07]} 21. Nxd7 {[%clk 0:01:37]}  Rxd7 {[%clk 0:01:06]} 22. dxe6 {[%clk 0:01:36]}  Nxe6 {[%clk 0:01:06]} 23. Bf3 {[%clk 0:01:35]}  Qa7 {[%clk 0:00:59]} 24. Bxa8 {[%clk 0:01:35]}  Qxa8 {[%clk 0:00:59]} 25. Be3 {[%clk 0:01:32]}  Nd4 {[%clk 0:00:51]} 26. Bxd4 {[%clk 0:01:25]}  cxd4 {[%clk 0:00:50]} 27. Nd1 {[%clk 0:01:21]}  Qe4 {[%clk 0:00:40]} 28. a5 {[%clk 0:01:17]}  bxa5 {[%clk 0:00:38]} 29. Rxa5 {[%clk 0:01:16]}  Nh5 {[%clk 0:00:35]} 30. Rxa6 {[%clk 0:01:07]}  Be5 {[%clk 0:00:29]} 31. f3 {[%clk 0:00:59]}  Qe2 {[%clk 0:00:21]} 32. Qh6 {[%clk 0:00:53]}  Rd8 {[%clk 0:00:18]} 33. Nf2 {[%clk 0:00:49]}  Bf4 {[%clk 0:00:15]} 34. Ng4 {[%clk 0:00:41]}  Bxh6 {[%clk 0:00:14]} 35. Nxh6+ {[%clk 0:00:42]}  Kg7 {[%clk 0:00:15]} 36. Ng4 {[%clk 0:00:41]}  Nf4 {[%clk 0:00:14]} 37. Rf2 {[%clk 0:00:40]}  Qd1+ {[%clk 0:00:13]} 38. Kh2 {[%clk 0:00:40]}  Qxb3 {[%clk 0:00:13]} 39. Ra7 {[%clk 0:00:38]}  Rf8 {[%clk 0:00:09]} 40. c5 {[%clk 0:00:35]}  d3 {[%clk 0:00:07]} 41. c6 {[%clk 0:00:34]}  Qc4 {[%clk 0:00:07]} 42. c7 {[%clk 0:00:33]}  Qc5 {[%clk 0:00:06]} 43. Rfa2 {[%clk 0:00:27]}  Rc8 {[%clk 0:00:06]} 44. Nf2 {[%clk 0:00:23]}  Rxc7 {[%clk 0:00:06]} 45. Ne4 {[%clk 0:00:23]}  Qe5 {[%clk 0:00:05]} 46. Rxc7 {[%clk 0:00:22]}  Qxc7 {[%clk 0:00:05]} 47. g3 {[%clk 0:00:22]}  Nd5 {[%clk 0:00:04]} 48. Rd2 {[%clk 0:00:21]}  Nb4 {[%clk 0:00:04]} 49. Kg2 {[%clk 0:00:20]}  f5 {[%clk 0:00:04]} 50. Nf2 {[%clk 0:00:19]}  Qc3 {[%clk 0:00:04]} 51. Rd1 {[%clk 0:00:19]}  d2 {[%clk 0:00:04]} 52. Kf1 {[%clk 0:00:18]}  Nd3 {[%clk 0:00:05]} 53. Ke2 {[%clk 0:00:18]}  Nxf2 {[%clk 0:00:05]} 54. Rxd2 {[%clk 0:00:17]}  Nxh3 {[%clk 0:00:04]} 55. Rd7+ {[%clk 0:00:16]}  Kh6 {[%clk 0:00:04]} 56. Rd3 {[%clk 0:00:17]}  Qc2+ {[%clk 0:00:04]} 57. Ke3 {[%clk 0:00:17]}  Qb1 {[%clk 0:00:04]} 58. g4 {[%clk 0:00:16]}  Qe1+ {[%clk 0:00:04]} 59. Kd4 {[%clk 0:00:16]}  fxg4 {[%clk 0:00:04]} 60. fxg4 {[%clk 0:00:16]}  Ng5 {[%clk 0:00:04]} 61. Re3 {[%clk 0:00:16]}  Qd2+ {[%clk 0:00:03]} 62. Rd3 {[%clk 0:00:14]}  Qf4+ {[%clk 0:00:04]} 63. Kc3 {[%clk 0:00:14]}  Ne4+ {[%clk 0:00:04]} 64. Kc2 {[%clk 0:00:14]}  Qf2+ {[%clk 0:00:04]} 65. Kc1 {[%clk 0:00:14]}  Qf1+ {[%clk 0:00:03]} 66. Kc2 {[%clk 0:00:14]}  Qe2+ {[%clk 0:00:03]} 67. Kc1 {[%clk 0:00:11]}  Qxd3 {[%clk 0:00:04]} 68. g5+ {[%clk 0:00:12]}  Kxg5 {[%clk 0:00:03]} 69. Kb2 {[%clk 0:00:13]}  Qc3+ {[%clk 0:00:03]} 70. Kb1 {[%clk 0:00:13]}  Nd2+ {[%clk 0:00:03]} 71. Ka2 {[%clk 0:00:14]}  Qc2+ {[%clk 0:00:03]} 72. Ka1 {[%clk 0:00:15]}  Qb1# {[%clk 0:00:04]} 0-1


[Site "https://www.chess.com"]

[Event "Titled Tuesday Blitz February 15 Late 2022"]
[White "Foisor, Sabina-Francesca"]
[Black "Plotkin, Mark"]
[WhiteFideId "1212915"]
[BlackFideId "2611651"]
[WhiteElo "2243"]
[BlackElo "2178"]
[Result "0-1"]
[Round "01"]
[TimeControl "180+1"]
[Date "2022.02.16"]
[WhiteClock "0:00:56"]
[BlackClock "0:02:18"]

1. Nf3 {[%clk 0:02:31]}  d6 {[%clk 0:03:00]} 2. g3 {[%clk 0:02:31]}  e5 {[%clk 0:03:00]} 3. Bg2 {[%clk 0:02:31]}  e4 {[%clk 0:03:00]} 4. Ng1 {[%clk 0:02:30]}  d5 {[%clk 0:03:00]} 5. d3 {[%clk 0:02:30]}  Nf6 {[%clk 0:02:59]} 6. dxe4 {[%clk 0:02:29]}  Nxe4 {[%clk 0:02:58]} 7. Nf3 {[%clk 0:02:28]}  Be7 {[%clk 0:02:53]} 8. O-O {[%clk 0:02:28]}  O-O {[%clk 0:02:53]} 9. b3 {[%clk 0:02:25]}  Bf6 {[%clk 0:02:53]} 10. c3 {[%clk 0:02:20]}  Nxc3 {[%clk 0:02:53]} 11. Nxc3 {[%clk 0:02:21]}  Bxc3 {[%clk 0:02:53]} 12. Rb1 {[%clk 0:02:20]}  Bf5 {[%clk 0:02:53]} 13. Bg5 {[%clk 0:02:18]}  f6 {[%clk 0:02:46]} 14. Rc1 {[%clk 0:02:13]}  Bb2 {[%clk 0:02:46]} 15. Bf4 {[%clk 0:02:08]}  Bxc1 {[%clk 0:02:46]} 16. Qxc1 {[%clk 0:02:08]}  Nc6 {[%clk 0:02:46]} 17. h3 {[%clk 0:02:07]}  Re8 {[%clk 0:02:46]} 18. Qd2 {[%clk 0:02:03]}  Qd7 {[%clk 0:02:44]} 19. Kh2 {[%clk 0:02:01]}  Be4 {[%clk 0:02:43]} 20. Rd1 {[%clk 0:01:59]}  Rad8 {[%clk 0:02:43]} 21. h4 {[%clk 0:01:50]}  Qf7 {[%clk 0:02:42]} 22. Nd4 {[%clk 0:01:43]}  Nxd4 {[%clk 0:02:41]} 23. Qxd4 {[%clk 0:01:42]}  Bxg2 {[%clk 0:02:42]} 24. Kxg2 {[%clk 0:01:42]}  Rxe2 {[%clk 0:02:42]} 25. Qxa7 {[%clk 0:01:40]}  c6 {[%clk 0:02:42]} 26. Qb6 {[%clk 0:01:37]}  Rde8 {[%clk 0:02:42]} 27. a4 {[%clk 0:01:36]}  Qg6 {[%clk 0:02:40]} 28. Qxb7 {[%clk 0:01:26]}  Qe4+ {[%clk 0:02:39]} 29. Kg1 {[%clk 0:01:26]}  Rxf2 {[%clk 0:02:35]} 30. Kxf2 {[%clk 0:01:20]}  Qe2+ {[%clk 0:02:35]} 31. Kg1 {[%clk 0:01:18]}  Qxd1+ {[%clk 0:02:36]} 32. Kg2 {[%clk 0:01:17]}  Re2+ {[%clk 0:02:27]} 33. Kh3 {[%clk 0:01:16]}  Qf1+ {[%clk 0:02:28]} 34. Kg4 {[%clk 0:01:16]}  h5+ {[%clk 0:02:29]} 35. Kxh5 {[%clk 0:01:07]}  Qf3+ {[%clk 0:02:25]} 36. g4 {[%clk 0:01:07]}  Qxf4 {[%clk 0:02:21]} 37. Qb8+ {[%clk 0:00:57]}  Kh7 {[%clk 0:02:18]} 38. Qxf4 {[%clk 0:00:56]}  g6# {[%clk 0:02:18]} 0-1


[Site "https://www.chess.com"]

[Event "Titled Tuesday Blitz February 15 Late 2022"]
[White "Garriga Cazorla, Pere"]
[Black "Koepke, Christian"]
[WhiteFideId "32011601"]
[BlackFideId "4655737"]
[WhiteElo "2458"]
[BlackElo "2180"]
[Result "0-1"]
[Round "01"]
[TimeControl "180+1"]
[Date "2022.02.16"]
[WhiteClock "0:01:42"]
[BlackClock "0:01:37"]

1. d4 {[%clk 0:02:43]}  d5 {[%clk 0:02:59]} 2. c4 {[%clk 0:02:43]}  e5 {[%clk 0:02:59]} 3. dxe5 {[%clk 0:02:43]}  Ne7 {[%clk 0:02:59]} 4. cxd5 {[%clk 0:02:40]}  Qxd5 {[%clk 0:03:00]} 5. Qxd5 {[%clk 0:02:36]}  Nxd5 {[%clk 0:03:01]} 6. a3 {[%clk 0:02:36]}  Nc6 {[%clk 0:03:01]} 7. Nf3 {[%clk 0:02:33]}  h6 {[%clk 0:03:00]} 8. e4 {[%clk 0:02:31]}  Nb6 {[%clk 0:03:00]} 9. h3 {[%clk 0:02:29]}  Bd7 {[%clk 0:02:59]} 10. Nc3 {[%clk 0:02:23]}  O-O-O {[%clk 0:02:59]} 11. Bf4 {[%clk 0:02:20]}  g5 {[%clk 0:02:58]} 12. Bg3 {[%clk 0:02:18]}  Bg7 {[%clk 0:02:57]} 13. Bb5 {[%clk 0:02:17]}  Rhe8 {[%clk 0:02:51]} 14. O-O-O {[%clk 0:02:17]}  Nxe5 {[%clk 0:02:32]} 15. Bxd7+ {[%clk 0:02:16]}  Nbxd7 {[%clk 0:02:29]} 16. Nd4 {[%clk 0:02:14]}  Nc5 {[%clk 0:02:21]} 17. Nde2 {[%clk 0:01:59]}  c6 {[%clk 0:01:49]} 18. Kc2 {[%clk 0:01:58]}  Nc4 {[%clk 0:01:48]} 19. Rxd8+ {[%clk 0:01:48]}  Rxd8 {[%clk 0:01:45]} 20. h4 {[%clk 0:01:48]}  Rd2+ {[%clk 0:01:41]} 21. Kc1 {[%clk 0:01:44]}  Nb3+ {[%clk 0:01:36]} 22. Kb1 {[%clk 0:01:42]}  Rxb2# {[%clk 0:01:37]} 0-1


[Site "https://www.chess.com"]

[Event "Titled Tuesday Blitz February 15 Late 2022"]
[White "Goltsev, Dmitry"]
[Black "Andreikin, Dmitry"]
[WhiteFideId "24176710"]
[BlackFideId "4158814"]
[WhiteElo "2273"]
[BlackElo "2736"]
[Result "0-1"]
[Round "01"]
[TimeControl "180+1"]
[Date "2022.02.15"]
[WhiteClock "0:00:03"]
[BlackClock "0:01:17"]

1. e4 {[%clk 0:02:59]}  g6 {[%clk 0:02:58]} 2. d4 {[%clk 0:02:59]}  Bg7 {[%clk 0:02:58]} 3. c3 {[%clk 0:02:59]}  Nf6 {[%clk 0:02:55]} 4. e5 {[%clk 0:02:58]}  Nd5 {[%clk 0:02:55]} 5. Nf3 {[%clk 0:02:57]}  d6 {[%clk 0:02:53]} 6. exd6 {[%clk 0:02:57]}  cxd6 {[%clk 0:02:53]} 7. Bb5+ {[%clk 0:02:56]}  Nc6 {[%clk 0:02:46]} 8. O-O {[%clk 0:02:56]}  O-O {[%clk 0:02:46]} 9. Re1 {[%clk 0:02:56]}  a6 {[%clk 0:02:42]} 10. Bd3 {[%clk 0:02:54]}  e5 {[%clk 0:02:24]} 11. dxe5 {[%clk 0:02:53]}  dxe5 {[%clk 0:02:23]} 12. Bc4 {[%clk 0:02:50]}  Nb6 {[%clk 0:02:15]} 13. Qxd8 {[%clk 0:02:43]}  Rxd8 {[%clk 0:02:16]} 14. Bb3 {[%clk 0:02:42]}  Na5 {[%clk 0:02:07]} 15. Bc2 {[%clk 0:02:40]}  f6 {[%clk 0:01:59]} 16. b3 {[%clk 0:02:26]}  Be6 {[%clk 0:01:56]} 17. Bb2 {[%clk 0:02:00]}  Bh6 {[%clk 0:01:50]} 18. c4 {[%clk 0:01:56]}  Nc6 {[%clk 0:01:48]} 19. a3 {[%clk 0:01:50]}  a5 {[%clk 0:01:44]} 20. c5 {[%clk 0:01:35]}  Nd7 {[%clk 0:01:38]} 21. Nd4 {[%clk 0:00:59]}  Nxd4 {[%clk 0:01:21]} 22. Bxd4 {[%clk 0:00:59]}  Bf5 {[%clk 0:01:19]} 23. Bxf5 {[%clk 0:00:56]}  gxf5 {[%clk 0:01:20]} 24. Bc3 {[%clk 0:00:34]}  Nxc5 {[%clk 0:01:19]} 25. b4 {[%clk 0:00:13]}  Ne4 {[%clk 0:01:18]} 26. Rf1 {[%clk 0:00:03]}  Rd3 {[%clk 0:01:17]} 0-1


[Site "https://www.chess.com"]

[Event "Titled Tuesday Blitz February 15 Late 2022"]
[White "Golubenko, Valentina"]
[Black "Lugovskoy, Maxim"]
[WhiteFideId "4501993"]
[BlackFideId "24126454"]
[WhiteElo "2164"]
[BlackElo "2444"]
[Result "0-1"]
[Round "01"]
[TimeControl "180+1"]
[Date "2022.02.16"]
[WhiteClock "0:00:09"]
[BlackClock "0:01:30"]

1. d4 {[%clk 0:02:58]}  e6 {[%clk 0:02:54]} 2. g3 {[%clk 0:02:58]}  Nf6 {[%clk 0:02:54]} 3. Bg2 {[%clk 0:02:58]}  Be7 {[%clk 0:02:53]} 4. c4 {[%clk 0:02:58]}  d5 {[%clk 0:02:53]} 5. Nc3 {[%clk 0:02:57]}  O-O {[%clk 0:02:49]} 6. Nf3 {[%clk 0:02:56]}  a6 {[%clk 0:02:48]} 7. b3 {[%clk 0:02:55]}  Bb4 {[%clk 0:02:37]} 8. Bd2 {[%clk 0:02:54]}  c5 {[%clk 0:02:30]} 9. dxc5 {[%clk 0:02:50]}  Bxc5 {[%clk 0:02:28]} 10. O-O {[%clk 0:02:49]}  Nc6 {[%clk 0:02:26]} 11. cxd5 {[%clk 0:02:46]}  exd5 {[%clk 0:02:24]} 12. Bg5 {[%clk 0:02:44]}  Be6 {[%clk 0:02:22]} 13. Bxf6 {[%clk 0:02:38]}  Qxf6 {[%clk 0:02:22]} 14. Nxd5 {[%clk 0:02:35]}  Bxd5 {[%clk 0:02:22]} 15. Qxd5 {[%clk 0:02:35]}  Ba3 {[%clk 0:02:15]} 16. Rad1 {[%clk 0:02:27]}  Rfe8 {[%clk 0:02:09]} 17. e3 {[%clk 0:02:23]}  h6 {[%clk 0:02:09]} 18. Qd7 {[%clk 0:02:18]}  Re7 {[%clk 0:02:08]} 19. Qg4 {[%clk 0:02:16]}  Rae8 {[%clk 0:02:07]} 20. Nh4 {[%clk 0:02:09]}  Re6 {[%clk 0:02:01]} 21. Bd5 {[%clk 0:02:02]}  Rd6 {[%clk 0:01:59]} 22. Bc4 {[%clk 0:01:59]}  Red8 {[%clk 0:01:55]} 23. Rxd6 {[%clk 0:01:49]}  Qxd6 {[%clk 0:01:56]} 24. Nf5 {[%clk 0:01:39]}  Qf6 {[%clk 0:01:55]} 25. Qe4 {[%clk 0:01:15]}  b5 {[%clk 0:01:55]} 26. Bd5 {[%clk 0:01:07]}  Nb4 {[%clk 0:01:53]} 27. Bb7 {[%clk 0:00:57]}  Nxa2 {[%clk 0:01:46]} 28. Qg4 {[%clk 0:00:48]}  Nc3 {[%clk 0:01:42]} 29. Bxa6 {[%clk 0:00:44]}  h5 {[%clk 0:01:37]} 30. Qf3 {[%clk 0:00:24]}  Qxa6 {[%clk 0:01:35]} 31. Qxh5 {[%clk 0:00:20]}  Qf6 {[%clk 0:01:28]} 32. h4 {[%clk 0:00:14]}  g6 {[%clk 0:01:23]} 33. Qg4 {[%clk 0:00:13]}  Qxf5 {[%clk 0:01:22]} 34. Qxf5 {[%clk 0:00:11]}  gxf5 {[%clk 0:01:22]} 35. Ra1 {[%clk 0:00:12]}  b4 {[%clk 0:01:22]} 36. Kg2 {[%clk 0:00:12]}  Rd1 {[%clk 0:01:22]} 37. Rxd1 {[%clk 0:00:10]}  Nxd1 {[%clk 0:01:23]} 38. Kf3 {[%clk 0:00:10]}  Nb2 {[%clk 0:01:24]} 39. Kf4 {[%clk 0:00:11]}  Nd3+ {[%clk 0:01:24]} 40. Kxf5 {[%clk 0:00:11]}  Nc1 {[%clk 0:01:25]} 41. e4 {[%clk 0:00:10]}  Nxb3 {[%clk 0:01:26]} 42. Kf4 {[%clk 0:00:09]}  Nc5 {[%clk 0:01:26]} 43. Ke3 {[%clk 0:00:09]}  b3 {[%clk 0:01:27]} 44. Kd2 {[%clk 0:00:09]}  b2 {[%clk 0:01:28]} 45. Kc2 {[%clk 0:00:10]}  Nxe4 {[%clk 0:01:29]} 46. f3 {[%clk 0:00:09]}  Nd2 {[%clk 0:01:30]} 0-1


[Site "https://www.chess.com"]

[Event "Titled Tuesday Blitz February 15 Late 2022"]
[White "Goryachkina, Aleksandra"]
[Black "Osmonbekov, Talaibek"]
[WhiteFideId "4147103"]
[BlackFideId "2017253"]
[WhiteElo "2426"]
[BlackElo "2135"]
[Result "0-1"]
[Round "01"]
[TimeControl "180+1"]
[Date "2022.02.16"]
[WhiteClock "0:00:01"]
[BlackClock "0:00:13"]

1. e4 {[%clk 0:02:59]}  c5 {[%clk 0:02:59]} 2. Nf3 {[%clk 0:02:58]}  d6 {[%clk 0:02:59]} 3. Bb5+ {[%clk 0:02:56]}  Nd7 {[%clk 0:02:58]} 4. O-O {[%clk 0:02:54]}  a6 {[%clk 0:02:58]} 5. Bxd7+ {[%clk 0:02:54]}  Bxd7 {[%clk 0:02:59]} 6. c3 {[%clk 0:02:54]}  Bc6 {[%clk 0:02:58]} 7. Re1 {[%clk 0:02:49]}  e5 {[%clk 0:02:53]} 8. d4 {[%clk 0:02:48]}  Qc7 {[%clk 0:02:53]} 9. Nbd2 {[%clk 0:02:30]}  Nf6 {[%clk 0:02:51]} 10. Nc4 {[%clk 0:02:21]}  O-O-O {[%clk 0:02:48]} 11. d5 {[%clk 0:02:15]}  Bb5 {[%clk 0:02:42]} 12. Qe2 {[%clk 0:02:11]}  g6 {[%clk 0:02:33]} 13. a4 {[%clk 0:02:09]}  Bxc4 {[%clk 0:02:25]} 14. Qxc4 {[%clk 0:02:09]}  Bg7 {[%clk 0:02:22]} 15. Bd2 {[%clk 0:02:02]}  Nh5 {[%clk 0:02:21]} 16. b4 {[%clk 0:01:55]}  f5 {[%clk 0:02:05]} 17. bxc5 {[%clk 0:01:51]}  Qxc5 {[%clk 0:02:05]} 18. Qxc5+ {[%clk 0:01:22]}  dxc5 {[%clk 0:02:06]} 19. c4 {[%clk 0:01:22]}  fxe4 {[%clk 0:02:01]} 20. Rxe4 {[%clk 0:01:10]}  Rde8 {[%clk 0:01:42]} 21. Bc3 {[%clk 0:01:08]}  Re7 {[%clk 0:01:24]} 22. Rae1 {[%clk 0:01:04]}  Rhe8 {[%clk 0:01:12]} 23. Nxe5 {[%clk 0:00:57]}  Nf6 {[%clk 0:01:07]} 24. R4e2 {[%clk 0:00:37]}  Nd7 {[%clk 0:00:58]} 25. f4 {[%clk 0:00:36]}  Nb6 {[%clk 0:00:58]} 26. Kf1 {[%clk 0:00:14]}  Nxa4 {[%clk 0:00:56]} 27. Ba1 {[%clk 0:00:13]}  b5 {[%clk 0:00:56]} 28. d6 {[%clk 0:00:12]}  Bxe5 {[%clk 0:00:34]} 29. dxe7 {[%clk 0:00:07]}  Bxf4 {[%clk 0:00:31]} 30. Rf2 {[%clk 0:00:05]}  Bd6 {[%clk 0:00:28]} 31. Rf7 {[%clk 0:00:05]}  b4 {[%clk 0:00:24]} 32. Bf6 {[%clk 0:00:03]}  Nb6 {[%clk 0:00:16]} 33. Rxh7 {[%clk 0:00:01]}  Nxc4 {[%clk 0:00:16]} 34. Re2 {[%clk 0:00:01]}  b3 {[%clk 0:00:13]} 35. Ke1 {[%clk 0:00:01]}  a5 {[%clk 0:00:13]} 36. Kd1 {[%clk 0:00:01]}  a4 {[%clk 0:00:13]} 0-1


[Site "https://www.chess.com"]

[Event "Titled Tuesday Blitz February 15 Late 2022"]
[White "Gracia Alvarez, Gerardo Antonio"]
[Black "Lenderman, Aleksandr"]
[WhiteFideId "5109124"]
[BlackFideId "2021285"]
[WhiteElo "2450"]
[BlackElo "2829"]
[Result "0-1"]
[Round "01"]
[TimeControl "180+1"]
[Date "2022.02.16"]
[WhiteClock "0:00:04"]
[BlackClock "0:00:05"]

1. e4 {[%clk 0:03:00]}  d6 {[%clk 0:02:50]} 2. d4 {[%clk 0:02:59]}  Nf6 {[%clk 0:02:49]} 3. Nc3 {[%clk 0:02:59]}  e5 {[%clk 0:02:49]} 4. Nf3 {[%clk 0:02:58]}  Nbd7 {[%clk 0:02:47]} 5. Bc4 {[%clk 0:02:57]}  Be7 {[%clk 0:02:45]} 6. O-O {[%clk 0:02:57]}  O-O {[%clk 0:02:43]} 7. Re1 {[%clk 0:02:56]}  c6 {[%clk 0:02:42]} 8. a4 {[%clk 0:02:56]}  a5 {[%clk 0:02:41]} 9. h3 {[%clk 0:02:55]}  Nb6 {[%clk 0:02:36]} 10. Ba2 {[%clk 0:02:54]}  exd4 {[%clk 0:02:16]} 11. Nxd4 {[%clk 0:02:51]}  Re8 {[%clk 0:02:12]} 12. Qf3 {[%clk 0:02:42]}  h6 {[%clk 0:02:03]} 13. Bf4 {[%clk 0:02:37]}  Bf8 {[%clk 0:01:51]} 14. Rad1 {[%clk 0:02:36]}  Nbd7 {[%clk 0:01:50]} 15. Nf5 {[%clk 0:01:44]}  Ne5 {[%clk 0:01:49]} 16. Qg3 {[%clk 0:01:27]}  Bxf5 {[%clk 0:01:42]} 17. exf5 {[%clk 0:01:28]}  Nh5 {[%clk 0:01:41]} 18. Qe3 {[%clk 0:01:20]}  Nxf4 {[%clk 0:01:39]} 19. Qxf4 {[%clk 0:01:21]}  Nd7 {[%clk 0:01:33]} 20. Bxf7+ {[%clk 0:00:55]}  Kxf7 {[%clk 0:01:30]} 21. Qc4+ {[%clk 0:00:55]}  d5 {[%clk 0:01:23]} 22. Nxd5 {[%clk 0:00:55]}  Ne5 {[%clk 0:00:09]} 23. Rxe5 {[%clk 0:00:51]}  Rxe5 {[%clk 0:00:10]} 24. Nf4+ {[%clk 0:00:30]}  Kf6 {[%clk 0:00:06]} 25. Rxd8 {[%clk 0:00:21]}  Rxd8 {[%clk 0:00:07]} 26. Ng6 {[%clk 0:00:06]}  Rxf5 {[%clk 0:00:04]} 27. Nxf8 {[%clk 0:00:05]}  Rxf8 {[%clk 0:00:03]} 28. Qc3+ {[%clk 0:00:06]}  Kg6 {[%clk 0:00:03]} 29. f3 {[%clk 0:00:06]}  Kh7 {[%clk 0:00:03]} 30. Qd3 {[%clk 0:00:06]}  Kh8 {[%clk 0:00:03]} 31. b3 {[%clk 0:00:05]}  Rd5 {[%clk 0:00:03]} 32. Qe4 {[%clk 0:00:05]}  Rfd8 {[%clk 0:00:03]} 33. Qe7 {[%clk 0:00:05]}  Rd1+ {[%clk 0:00:04]} 34. Kh2 {[%clk 0:00:05]}  R1d7 {[%clk 0:00:05]} 35. Qe4 {[%clk 0:00:05]}  Rd2 {[%clk 0:00:06]} 36. Qe7 {[%clk 0:00:04]}  Rg8 {[%clk 0:00:06]} 37. Qe4 {[%clk 0:00:04]}  b5 {[%clk 0:00:05]} 38. Qxc6 {[%clk 0:00:03]}  bxa4 {[%clk 0:00:05]} 39. bxa4 {[%clk 0:00:04]}  Rgd8 {[%clk 0:00:05]} 40. c4 {[%clk 0:00:03]}  Rb8 {[%clk 0:00:04]} 41. Qc7 {[%clk 0:00:03]}  Rbb2 {[%clk 0:00:05]} 42. Qc8+ {[%clk 0:00:02]}  Kh7 {[%clk 0:00:05]} 43. Qg4 {[%clk 0:00:03]}  Kg8 {[%clk 0:00:05]} 44. Qc8+ {[%clk 0:00:03]}  Kf7 {[%clk 0:00:04]} 45. Qf5+ {[%clk 0:00:03]}  Ke7 {[%clk 0:00:05]} 46. Qe4+ {[%clk 0:00:02]}  Kd7 {[%clk 0:00:05]} 47. Qg4+ {[%clk 0:00:03]}  Kc6 {[%clk 0:00:05]} 48. Qg6+ {[%clk 0:00:03]}  Kc5 {[%clk 0:00:05]} 49. Qxg7 {[%clk 0:00:03]}  Kxc4 {[%clk 0:00:05]} 50. Qg8+ {[%clk 0:00:04]}  Kb4 {[%clk 0:00:06]} 51. h4 {[%clk 0:00:03]}  Kxa4 {[%clk 0:00:06]} 52. Qe8+ {[%clk 0:00:03]}  Kb4 {[%clk 0:00:06]} 53. Qb8+ {[%clk 0:00:04]}  Ka3 {[%clk 0:00:06]} 54. Qf8+ {[%clk 0:00:03]}  Ka2 {[%clk 0:00:07]} 55. Qg8+ {[%clk 0:00:03]}  Ka1 {[%clk 0:00:07]} 56. f4 {[%clk 0:00:04]}  a4 {[%clk 0:00:07]} 57. f5 {[%clk 0:00:04]}  a3 {[%clk 0:00:07]} 58. f6 {[%clk 0:00:05]}  a2 {[%clk 0:00:03]} 59. f7 {[%clk 0:00:05]}  Rf2 {[%clk 0:00:03]} 60. f8=Q {[%clk 0:00:05]}  Rxf8 {[%clk 0:00:03]} 61. Qxf8 {[%clk 0:00:06]}  Rc2 {[%clk 0:00:03]} 62. Qg7+ {[%clk 0:00:06]}  Kb1 {[%clk 0:00:03]} 63. Qb7+ {[%clk 0:00:06]}  Kc1 {[%clk 0:00:03]} 64. Qa6 {[%clk 0:00:06]}  Kb1 {[%clk 0:00:02]} 65. Qb5+ {[%clk 0:00:06]}  Kc1 {[%clk 0:00:03]} 66. Qf1+ {[%clk 0:00:05]}  Kb2 {[%clk 0:00:03]} 67. Qb5+ {[%clk 0:00:06]}  Kc1 {[%clk 0:00:03]} 68. Qa4 {[%clk 0:00:05]}  Kb2 {[%clk 0:00:03]} 69. Qb4+ {[%clk 0:00:05]}  Kc1 {[%clk 0:00:04]} 70. Qa3+ {[%clk 0:00:05]}  Kb1 {[%clk 0:00:04]} 71. Qb3+ {[%clk 0:00:05]}  Kc1 {[%clk 0:00:05]} 72. Qa3+ {[%clk 0:00:05]}  Kb1 {[%clk 0:00:05]} 73. h5 {[%clk 0:00:06]}  a1=Q {[%clk 0:00:05]} 74. Qb3+ {[%clk 0:00:06]}  Qb2 {[%clk 0:00:05]} 75. Qd3 {[%clk 0:00:05]}  Qb8+ {[%clk 0:00:04]} 76. Kh3 {[%clk 0:00:05]}  Qe5 {[%clk 0:00:04]} 77. Qb3+ {[%clk 0:00:04]}  Kc1 {[%clk 0:00:04]} 78. Qa3+ {[%clk 0:00:04]}  Kd2 {[%clk 0:00:05]} 79. Qb4+ {[%clk 0:00:04]}  Qc3+ {[%clk 0:00:05]} 0-1


[Site "https://www.chess.com"]